fUSD/lending_fUSD_20250213
["ID","MTS","AMOUNT","RATE_DAILY","PERIOD"]
[352931097,1739440249309,-500.0,0.00015198,2]
[352931098,1739440249319,-2245.22,0.00015198,2]
[352931099,1739440249328,-3593.54,0.00015198,2]
[352931100,1739440249338,-237.01564577,0.00015198,2]
[352931101,1739440249348,-257.06061416,0.00015199,2]
[352931102,1739440249358,-500.50916,0.00015199,2]
[352931103,1739440249368,-500.0,0.00015199,2]
[352931104,1739440249377,-500.0,0.00015199,2]
[352931105,1739440249387,-500.0,0.00015199,2]
[352931106,1739440249396,-500.0,0.00015199,2]
[352931107,1739440249406,-500.0,0.00015199,2]
[352931108,1739440249415,-203.30088894,0.00015199,2]
[352931109,1739440249425,-501.00961371,0.00015199,2]
[352931110,1739440249434,-509.51289663,0.00015199,2]
[352931111,1739440249444,-361.78357167,0.00015199,2]
[352931112,1739440249454,-500.0,0.00015199,2]
[352931113,1739440249463,-500.0,0.00015199,2]
[352931114,1739440249472,-500.0,0.00015199,2]
[352931115,1739440249482,-514.41606088,0.00015199,2]
[352931116,1739440249491,-500.0,0.00015199,2]
[352931117,1739440249500,-503.43687855,0.00015199,2]
[352931118,1739440249510,-500.0,0.00015199,2]
[352931119,1739440249519,-500.0,0.00015199,2]
[352931120,1739440249529,-301.52820348,0.00015199,2]
[352931121,1739440249538,-500.0,0.00015199,2]
[352931122,1739440249548,-500.0,0.00015199,2]
[352931123,1739440249558,-500.0,0.00015199,2]
[352931124,1739440249568,-500.0,0.00015199,2]
[352931125,1739440249577,-500.0,0.00015199,2]
[352931126,1739440249586,-500.0,0.00015199,2]
[352931127,1739440249595,-500.0,0.00015199,2]
[352931128,1739440249604,-500.0,0.00015199,2]
[352931129,1739440249613,-500.0,0.00015199,2]
[352931130,1739440249622,-500.0,0.00015199,2]
[352931131,1739440249631,-500.0,0.00015199,2]
[352931132,1739440249640,-500.0,0.00015199,2]
[352931133,1739440249649,-500.0,0.00015199,2]
[352931134,1739440249658,-500.0,0.00015199,2]
[352931135,1739440249668,-500.0,0.00015199,2]
[352931136,1739440249677,-500.0,0.00015199,2]
[352931137,1739440249686,-500.0,0.00015199,2]
[352931138,1739440249696,-500.0,0.00015199,2]
[352931139,1739440249706,-500.0,0.00015199,2]
[352931140,1739440249715,-500.0,0.00015199,2]
[352931141,1739440249725,-500.0,0.00015199,2]
[352931142,1739440249735,-500.81179611,0.00015199,2]
[352931143,1739440249744,-500.0,0.00015199,2]
[352931144,1739440249758,-500.0,0.00015199,2]
[352931145,1739440249768,-501.13078672,0.00015199,2]
[352931146,1739440249777,-500.0,0.00015199,2]
[352931147,1739440249786,-500.0,0.00015199,2]
[352931148,1739440249795,-500.0,0.00015199,2]
[352931149,1739440249804,-500.0,0.00015199,2]
[352931150,1739440249814,-500.0,0.00015199,2]
[352931151,1739440249823,-500.0,0.00015199,2]
[352931152,1739440249832,-502.45019649,0.00015199,2]
[352931153,1739440249841,-500.0,0.00015199,2]
[352931154,1739440249850,-500.0,0.00015199,2]
[352931155,1739440249864,-500.0,0.00015199,2]
[352931156,1739440249873,-510.787056,0.00015199,2]
[352931157,1739440249882,-500.0,0.00015199,2]
[352931158,1739440249891,-947.41,0.00015199,2]
[352931159,1739440249899,-500.0,0.00015199,2]
[352931160,1739440249910,-500.0,0.00015199,2]
[352931161,1739440249920,-690.3,0.00015199,2]
[352931162,1739440249930,-500.0,0.00015199,2]
[352931163,1739440249940,-500.0,0.00015199,2]
[352931164,1739440249952,-500.0,0.00015199,2]
[352931165,1739440249963,-501.7187538,0.00015199,2]
[352931166,1739440249973,-500.0,0.00015199,2]
[352931167,1739440249983,-500.0,0.00015199,2]
[352931168,1739440249993,-500.0,0.00015199,2]
[352931169,1739440250003,-500.0,0.00015199,2]
[352931170,1739440250012,-500.0,0.00015199,2]
[352931171,1739440250022,-500.0,0.00015199,2]
[352931172,1739440250032,-500.0,0.00015199,2]
[352931173,1739440250043,-500.0,0.00015199,2]
[352931174,1739440250053,-500.0,0.00015199,2]
[352931175,1739440250062,-500.0,0.00015199,2]
[352931176,1739440250071,-500.0,0.00015199,2]
[352931177,1739440250081,-582.8974065,0.00015199,2]
[352931178,1739440250090,-500.0,0.00015199,2]
[352931179,1739440250099,-500.0,0.00015199,2]
[352931180,1739440250108,-500.0,0.00015199,2]
[352931181,1739440250118,-500.0,0.00015199,2]
[352931182,1739440250127,-500.0,0.00015199,2]
[352931183,1739440250140,-510.47,0.00015199,2]
[352931184,1739440250150,-500.0,0.00015199,2]
[352931185,1739440250160,-562.37457578,0.00015199,2]
[352931186,1739440250170,-500.0,0.00015199,2]
[352931187,1739440250180,-806.23,0.00015199,2]
[352931188,1739440250189,-500.0,0.00015199,2]
[352931189,1739440250200,-500.0,0.00015199,2]
[352931190,1739440250210,-500.0,0.00015199,2]
[352931191,1739440250220,-500.0,0.00015199,2]
[352931192,1739440250229,-502.13547077,0.00015199,2]
[352931193,1739440250238,-540.43,0.00015199,2]
[352931194,1739440250248,-500.0,0.00015199,2]
[352931195,1739440250258,-500.0,0.00015199,2]
[352931196,1739440250268,-543.2,0.00015199,2]
[352931197,1739440250279,-500.0,0.00015199,2]
[352931198,1739440250290,-500.0,0.00015199,2]
[352931199,1739440250300,-500.0,0.00015199,2]
[352931200,1739440250310,-500.0,0.00015199,2]
[352931201,1739440250320,-500.0,0.00015199,2]
[352931202,1739440250331,-500.0,0.00015199,2]
[352931203,1739440250342,-746.58,0.00015199,2]
[352931204,1739440250352,-500.0,0.00015199,2]
[352931205,1739440250361,-502.13438114,0.00015199,2]
[352931206,1739440250371,-500.0,0.00015199,2]
[352931207,1739440250381,-500.0,0.00015199,2]
[352931208,1739440250391,-506.6,0.00015199,2]
[352931209,1739440250401,-2307.96,0.00015199,2]
[352931210,1739440250411,-607.20885459,0.00015199,2]
[352931211,1739440250420,-1018.06,0.00015199,2]
[352931212,1739440250430,-500.0,0.00015199,2]
[352931213,1739440250439,-500.0,0.00015199,2]
[352931214,1739440250448,-1265.86,0.00015199,2]
[352931215,1739440250458,-500.0,0.00015199,2]
[352931216,1739440250467,-889.22,0.00015199,2]
[352931217,1739440250477,-500.0,0.00015199,2]
[352931218,1739440250487,-500.0,0.00015199,2]
[352931219,1739440250497,-500.0,0.00015199,2]
[352931220,1739440250507,-500.0,0.00015199,2]
[352931221,1739440250517,-500.0,0.00015199,2]
[352931222,1739440250527,-1194.4,0.00015199,2]
[352931223,1739440250536,-500.0,0.00015199,2]
[352931224,1739440250546,-500.0,0.00015199,2]
[352931225,1739440250556,-500.0,0.00015199,2]
[352931226,1739440250566,-1158.36,0.00015199,2]
[352931227,1739440250575,-976.95,0.00015199,2]
[352931228,1739440250584,-707.16,0.00015199,2]
[352931229,1739440250594,-1048.62,0.00015199,2]
[352931230,1739440250603,-500.0,0.00015199,2]
[352931231,1739440250613,-500.0,0.00015199,2]
[352931232,1739440250623,-2412.31,0.00015199,2]
[352931233,1739440250632,-1002.11,0.00015199,2]
[352931234,1739440250642,-1473.22,0.00015199,2]
[352931235,1739440250652,-500.0,0.00015199,2]
[352931236,1739440250662,-500.0,0.00015199,2]
[352931237,1739440250671,-158.58119736,0.00015199,2]
[352931238,1739440250681,-1528.77,0.00015199,2]
[352931239,1739440250690,-500.0,0.00015199,2]
[352931240,1739440250699,-2442.06,0.00015199,2]
[352931241,1739440250710,-1155.6,0.00015199,2]
[352931242,1739440250719,-1074.29,0.00015199,2]
[352931243,1739440250729,-500.0,0.00015199,2]
[352931244,1739440250738,-500.0,0.00015199,2]
[352931245,1739440250748,-500.0,0.00015199,2]
[352931246,1739440250757,-500.0,0.00015199,2]
[352931247,1739440250767,-1447.59,0.00015199,2]
[352931248,1739440250776,-500.0,0.00015199,2]
[352931249,1739440250785,-2073.83,0.00015199,2]
[352931250,1739440250795,-1009.62,0.00015199,2]
[352931251,1739440250804,-1945.18,0.00015199,2]
[352931252,1739440250814,-2161.73,0.00015199,2]
[352931253,1739440250988,-1997.49,0.00015199,2]
[352931254,1739440250998,-1507.59,0.00015199,2]
[352931255,1739440251008,-1164.86,0.00015199,2]
[352931256,1739440251018,-728.39,0.00015199,2]
[352931257,1739440251027,-2186.96,0.00015199,2]
[352931258,1739440251036,-1006.22,0.00015199,2]
[352931259,1739440251045,-2248.92,0.00015199,2]
[352931260,1739440251054,-2211.09,0.00015199,2]
[352931261,1739440251064,-1116.68,0.00015199,2]
[352931262,1739440251074,-1263.75,0.00015199,2]
[352931263,1739440251085,-604.09,0.00015199,2]
[352931264,1739440251096,-500.0,0.00015199,2]
[352931265,1739440251106,-542.91,0.00015199,2]
[352931266,1739440251116,-500.0,0.00015199,2]
[352931267,1739440251126,-1177.63,0.00015199,2]
[352931268,1739440251135,-603.55,0.00015199,2]
[352931269,1739440251144,-1278.52,0.00015199,2]
[352931270,1739440251154,-500.0,0.00015199,2]
[352931271,1739440251164,-500.0,0.00015199,2]
[352931272,1739440251174,-500.0,0.00015199,2]
[352931273,1739440251183,-1000.0,0.00015212,2]
[352931274,1739440251193,-1000.0,0.00015219,2]
[352931275,1739440251203,-1000.0,0.00015265,2]
[352931276,1739440251212,-152.0,0.00015275,3]
[352931277,1739440251222,-500.0,0.00015276,2]
[352931278,1739440251231,-1000.0,0.00015279,2]
[352931279,1739440251240,-150.0,0.00015282,2]
[352931280,1739440251249,-7642.189024,0.00015329,2]
[352931281,1739440251258,-7863.669063,0.00015329,2]
[352931282,1739440251268,-150.0,0.00015331,2]
[352931283,1739440251278,-7642.189024,0.00015332,2]
[352931284,1739440251288,-7863.669063,0.00015332,2]
[352931285,1739440251297,-1047.0,0.00015332,2]
[352931286,1739440251306,-2342.44,0.00015332,2]
[352931287,1739440251316,-2112.47,0.00015332,2]
[352931288,1739440251326,-1813.37,0.00015332,2]
[352931289,1739440251335,-651.86,0.00015333,2]
[352931290,1739440251344,-857.11,0.00015333,2]
[352931291,1739440251354,-500.0,0.00015333,2]
[352931292,1739440251363,-500.0,0.00015333,2]
[352931293,1739440251374,-1571.2,0.00015333,2]
[352931294,1739440251383,-500.0,0.00015333,2]
[352931295,1739440251393,-500.0,0.00015333,2]
[352931296,1739440251402,-500.0,0.00015333,2]
[352931297,1739440251413,-500.0,0.00015333,2]
[352931298,1739440251423,-742.1,0.00015333,2]
[352931299,1739440251432,-500.0,0.00015333,2]
[352931300,1739440251441,-500.0,0.00015333,2]
[352931301,1739440251451,-500.0,0.00015333,2]
[352931302,1739440251460,-500.0,0.00015333,2]
[352931303,1739440251469,-500.0,0.00015333,2]
[352931304,1739440251478,-500.0,0.00015333,2]
[352931305,1739440251487,-979.19,0.00015333,2]
[352931306,1739440251496,-660.94,0.00015333,2]
[352931307,1739440251506,-571.05531489,0.00015333,2]
[352931308,1739440251515,-520.31,0.00015333,2]
[352931309,1739440251524,-500.0,0.00015333,2]
[352931310,1739440251534,-1086.45,0.00015333,2]
[352931311,1739440251543,-500.0,0.00015333,2]
[352931312,1739440251552,-2677.55,0.00015333,2]
[352931313,1739440251561,-500.0,0.00015333,2]
[352931314,1739440251571,-516.10785175,0.00015333,2]
[352931315,1739440251580,-500.0,0.00015333,2]
[352931316,1739440251590,-500.0,0.00015333,2]
[352931317,1739440251600,-1071.66,0.00015333,2]
[352931318,1739440251609,-769.89,0.00015333,2]
[352931319,1739440251618,-500.0,0.00015333,2]
[352931320,1739440251628,-2875.03,0.00015333,2]
[352931321,1739440251637,-500.0,0.00015333,2]
[352931322,1739440251647,-1915.71,0.00015333,2]
[352931323,1739440251656,-1148.46,0.00015333,2]
[352931324,1739440251666,-500.0,0.00015333,2]
[352931325,1739440251675,-1106.09,0.00015333,2]
[352931326,1739440251684,-500.0,0.00015333,2]
[352931327,1739440251694,-2650.82,0.00015333,2]
[352931328,1739440251703,-500.0,0.00015333,2]
[352931329,1739440251712,-500.0,0.00015333,2]
[352931330,1739440251721,-1767.94,0.00015333,2]
[352931331,1739440251730,-500.0,0.00015333,2]
[352931332,1739440251740,-500.0,0.00015333,2]
[352931333,1739440251749,-1997.99,0.00015333,2]
[352931334,1739440251758,-500.0,0.00015333,2]
[352931335,1739440251767,-2979.93,0.00015333,2]
[352931336,1739440251777,-3664.86,0.00015333,2]
[352931337,1739440251786,-500.0,0.00015333,2]
[352931338,1739440251797,-708.32,0.00015333,2]
[352931339,1739440251806,-3734.91,0.00015333,2]
[352931340,1739440251815,-629.68,0.00015333,2]
[352931341,1739440251825,-500.0,0.00015333,2]
[352931342,1739440251834,-500.0,0.00015333,2]
[352931343,1739440251843,-500.0,0.00015333,2]
[352931344,1739440251853,-511.55030465,0.00015333,2]
[352931345,1739440251866,-2556.52,0.00015333,2]
[352931346,1739440251875,-1248.22,0.00015333,2]
[352931347,1739440251884,-500.0,0.00015333,2]
[352931348,1739440251894,-3133.29,0.00015333,2]
[352931349,1739440251905,-500.0,0.00015333,2]
[352931350,1739440251915,-3892.45,0.00015333,2]
[352931351,1739440251924,-1559.7,0.00015333,2]
[352931352,1739440251935,-2404.56,0.00015333,2]
[352931353,1739440251944,-4143.27,0.00015333,2]
[352931354,1739440251954,-10611.05,0.00015333,2]
[352931355,1739440251963,-4893.73,0.00015333,2]
[352931356,1739440251973,-2471.18,0.00015333,2]
[352931357,1739440251983,-500.0,0.00015333,2]
[352931358,1739440251992,-4499.37,0.00015333,2]
[352931359,1739440252001,-500.0,0.00015333,2]
[352931360,1739440252010,-2174.87,0.00015333,2]
[352931361,1739440252019,-7952.52,0.00015333,2]
[352931362,1739440252028,-3718.79,0.00015333,2]
[352931363,1739440252037,-500.0,0.00015333,2]
[352931364,1739440252046,-500.0,0.00015333,2]
[352931365,1739440252056,-2704.0,0.00015333,2]
[352931366,1739440252065,-4344.77,0.00015333,2]
[352931367,1739440252074,-516.1,0.00015333,2]
[352931368,1739440252083,-500.0,0.00015333,2]
[352931369,1739440252092,-3792.03,0.00015333,2]
[352931370,1739440252102,-500.0,0.00015333,2]
[352931371,1739440252111,-500.0,0.00015333,2]
[352931372,1739440252120,-592.7,0.00015333,2]
[352931373,1739440252129,-500.0,0.00015333,2]
[352931374,1739440252138,-500.0,0.00015333,2]
[352931375,1739440252148,-3654.43,0.00015333,2]
[352931376,1739440252157,-1447.81,0.00015333,2]
[352931377,1739440252167,-500.0,0.00015333,2]
[352931378,1739440252176,-3084.28,0.00015333,2]
[352931379,1739440252185,-1883.26,0.00015333,2]
[352931380,1739440252194,-500.0,0.00015333,2]
[352931381,1739440252203,-4236.61,0.00015333,2]
[352931382,1739440252212,-1884.68,0.00015333,2]
[352931383,1739440252221,-500.0,0.00015333,2]
[352931384,1739440252231,-5630.77,0.00015333,2]
[352931385,1739440252240,-1026.36,0.00015333,2]
[352931386,1739440252250,-4856.48,0.00015333,2]
[352931387,1739440252259,-500.0,0.00015333,2]
[352931388,1739440252267,-500.0,0.00015333,2]
[352931389,1739440252277,-3356.76,0.00015333,2]
[352931390,1739440252287,-3413.39,0.00015333,2]
[352931391,1739440252295,-500.0,0.00015333,2]
[352931392,1739440252304,-500.0,0.00015333,2]
[352931393,1739440252313,-5388.07,0.00015333,2]
[352931394,1739440252323,-569.77,0.00015333,2]
[352931395,1739440252333,-500.0,0.00015333,2]
[352931396,1739440252342,-3419.55,0.00015333,2]
[352931397,1739440252351,-500.0,0.00015333,2]
[352931398,1739440252360,-1195.78,0.00015333,2]
[352931399,1739440252369,-500.0,0.00015333,2]
[352931400,1739440252379,-1746.51,0.00015333,2]
[352931401,1739440252388,-3490.09,0.00015333,2]
[352931402,1739440252397,-2481.24,0.00015333,2]
[352931403,1739440252406,-500.0,0.00015333,2]
[352931404,1739440252416,-500.0,0.00015333,2]
[352931405,1739440252425,-500.0,0.00015333,2]
[352931406,1739440252435,-500.0,0.00015333,2]
[352931407,1739440252445,-500.0,0.00015333,2]
[352931408,1739440252454,-4737.67,0.00015333,2]
[352931409,1739440252464,-500.0,0.00015333,2]
[352931410,1739440252473,-500.0,0.00015333,2]
[352931411,1739440252483,-1499.48,0.00015333,2]
[352931412,1739440252492,-500.0,0.00015333,2]
[352931413,1739440252502,-2518.9,0.00015333,2]
[352931414,1739440252511,-500.0,0.00015333,2]
[352931415,1739440252521,-4140.73,0.00015333,2]
[352931416,1739440252530,-500.0,0.00015333,2]
[352931417,1739440252540,-3216.62,0.00015333,2]
[352931418,1739440252549,-500.0,0.00015333,2]
[352931419,1739440252558,-1669.85,0.00015333,2]
[352931420,1739440252570,-1128.62,0.00015333,2]
[352931421,1739440252579,-1350.47,0.00015333,2]
[352931422,1739440252589,-1857.43,0.00015333,2]
[352931423,1739440252599,-531.5,0.00015334,2]
[352931424,1739440252608,-500.0,0.00015334,2]
[352931425,1739440252617,-736.55,0.00015334,2]
[352931426,1739440252627,-500.0,0.00015334,2]
[352931427,1739440252636,-489.80722599,0.00015334,2]
[352931428,1739440252646,-500.0,0.00015334,2]
[352931429,1739440252655,-500.0,0.00015334,2]
[352931430,1739440252664,-500.0,0.00015334,2]
[352931431,1739440252673,-500.0,0.00015334,2]
[352931432,1739440252683,-500.0,0.00015334,2]
[352931433,1739440252692,-500.0,0.00015334,2]
[352931434,1739440252701,-500.0,0.00015334,2]
[352931435,1739440252711,-500.0,0.00015334,2]
[352931436,1739440252720,-785.31,0.00015334,2]
[352931437,1739440252729,-500.0,0.00015334,2]
[352931438,1739440252739,-500.0,0.00015334,2]
[352931439,1739440252748,-768.24,0.00015334,2]
[352931440,1739440252757,-1200.0,0.00015334,2]
[352931441,1739440252766,-500.0,0.00015334,2]
[352931442,1739440252775,-1140.41,0.00015334,2]
[352931443,1739440252784,-1692.375,0.00015334,2]
[352931444,1739440252794,-500.0,0.00015334,2]
[352931445,1739440252803,-500.0,0.00015334,2]
[352931446,1739440252812,-500.0,0.00015334,2]
[352931447,1739440252821,-486.68292805,0.00015334,2]
[352931448,1739440252831,-810.37,0.00015334,2]
[352931449,1739440252840,-1057.57,0.00015334,2]
[352931450,1739440252849,-500.0,0.00015334,2]
[352931451,1739440252862,-500.0,0.00015334,2]
[352931452,1739440252871,-797.21,0.00015334,2]
[352931453,1739440252880,-604.82,0.00015334,2]
[352931454,1739440252889,-500.0,0.00015334,2]
[352931455,1739440252899,-500.0,0.00015334,2]
[352931456,1739440252908,-500.0,0.00015334,2]
[352931457,1739440252917,-826.69,0.00015334,2]
[352931458,1739440252926,-1221.7,0.00015334,2]
[352931459,1739440252940,-441.2400488,0.00015334,2]
[352931460,1739440252951,-500.0,0.00015334,2]
[352931461,1739440252960,-500.0,0.00015334,2]
[352931462,1739440252971,-500.0,0.00015334,2]
[352931463,1739440252981,-516.84,0.00015334,2]
[352931464,1739440252991,-1111.07,0.00015334,2]
[352931465,1739440253002,-930.88,0.00015334,2]
[352931466,1739440253015,-500.0,0.00015334,2]
[352931467,1739440253024,-333.2519022,0.00015334,2]
[352931468,1739440253034,-500.0,0.00015334,2]
[352931469,1739440253044,-500.0,0.00015334,2]
[352931470,1739440253054,-980.7,0.00015334,2]
[352931471,1739440253064,-500.0,0.00015334,2]
[352931472,1739440253074,-1287.91,0.00015334,2]
[352931473,1739440253083,-521.69,0.00015334,2]
[352931474,1739440253092,-2290.11,0.00015334,2]
[352931475,1739440253245,-723.5,0.00015334,2]
[352931476,1739440253254,-500.0,0.00015334,2]
[352931477,1739440253263,-848.38,0.00015334,2]
[352931478,1739440253272,-1406.16,0.00015334,2]
[352931479,1739440253281,-500.0,0.00015334,2]
[352931480,1739440253290,-500.0,0.00015334,2]
[352931481,1739440253300,-500.0,0.00015334,2]
[352931482,1739440253309,-500.0,0.00015334,2]
[352931483,1739440253318,-1100.85,0.00015334,2]
[352931484,1739440253328,-500.0,0.00015334,2]
[352931485,1739440253337,-500.0,0.00015334,2]
[352931486,1739440253346,-1074.9,0.00015334,2]
[352931487,1739440253355,-1415.75,0.00015334,2]
[352931488,1739440253365,-852.09,0.00015334,2]
[352931489,1739440253374,-500.0,0.00015334,2]
[352931490,1739440253383,-1119.55,0.00015334,2]
[352931491,1739440253392,-1264.64,0.00015334,2]
[352931492,1739440253402,-2226.72,0.00015334,2]
[352931493,1739440253411,-2040.55,0.00015334,2]
[352931494,1739440253420,-500.0,0.00015334,2]
[352931495,1739440253429,-500.0,0.00015334,2]
[352931496,1739440253439,-960.87,0.00015334,2]
[352931497,1739440253447,-1591.25,0.00015334,2]
[352931498,1739440253456,-500.0,0.00015334,2]
[352931499,1739440253466,-794.52,0.00015334,2]
[352931500,1739440253475,-968.02,0.00015334,2]
[352931501,1739440253484,-500.0,0.00015334,2]
[352931502,1739440253494,-500.0,0.00015334,2]
[352931503,1739440253504,-717.25,0.00015334,2]
[352931504,1739440253513,-575.38,0.00015334,2]
[352931505,1739440253522,-615.7,0.00015334,2]
[352931506,1739440253531,-1101.33,0.00015334,2]
[352931507,1739440253540,-591.26,0.00015334,2]
[352931508,1739440253550,-1844.79,0.00015334,2]
[352931509,1739440253559,-500.0,0.00015334,2]
[352931510,1739440253568,-601.37,0.00015334,2]
[352931511,1739440253577,-509.96,0.00015334,2]
[352931512,1739440253587,-500.0,0.00015334,2]
[352931513,1739440253596,-1624.97,0.00015334,2]
[352931514,1739440253605,-579.3,0.00015334,2]
[352931515,1739440253615,-1235.79,0.00015334,2]
[352931516,1739440253624,-500.0,0.00015334,2]
[352931517,1739440253633,-952.58,0.00015334,2]
[352931518,1739440253643,-500.0,0.00015334,2]
[352931519,1739440253652,-500.0,0.00015334,2]
[352931520,1739440253661,-529.92524766,0.00015334,2]
[352931521,1739440253672,-2298.47,0.00015334,2]
[352931522,1739440253681,-527.97,0.00015334,2]
[352931523,1739440253691,-500.0,0.00015334,2]
[352931524,1739440253701,-500.0,0.00015334,2]
[352931525,1739440253711,-500.0,0.00015334,2]
[352931526,1739440253721,-1120.65,0.00015334,2]
[352931527,1739440253730,-800.84,0.00015334,2]
[352931528,1739440253739,-500.0,0.00015334,2]
[352931529,1739440253749,-877.44,0.00015334,2]
[352931530,1739440253758,-950.84,0.00015334,2]
[352931531,1739440253769,-500.0,0.00015334,2]
[352931532,1739440253779,-500.0,0.00015334,2]
[352931533,1739440253789,-554.95,0.00015334,2]
[352931534,1739440253799,-1346.94,0.00015334,2]
[352931535,1739440253809,-1138.6,0.00015334,2]
[352931536,1739440253819,-500.0,0.00015334,2]
[352931537,1739440253829,-500.0,0.00015334,2]
[352931538,1739440253840,-2005.1,0.00015334,2]
[352931539,1739440253849,-1184.97,0.00015334,2]
[352931540,1739440253864,-732.97,0.00015334,2]
[352931541,1739440253874,-2018.84,0.00015334,2]
[352931542,1739440253885,-1131.32,0.00015334,2]
[352931543,1739440253896,-1443.91,0.00015334,2]
[352931544,1739440253906,-690.5,0.00015334,2]
[352931545,1739440253916,-1299.45,0.00015334,2]
[352931546,1739440253925,-559.12,0.00015334,2]
[352931547,1739440253936,-1247.56,0.00015334,2]
[352931548,1739440253945,-500.0,0.00015334,2]
[352931549,1739440253954,-500.0,0.00015334,2]
[352931550,1739440253963,-500.0,0.00015334,2]
[352931551,1739440253972,-2282.11,0.00015334,2]
[352931552,1739440253981,-1791.7,0.00015334,2]
[352931553,1739440253990,-500.0,0.00015334,2]
[352931554,1739440254000,-500.0,0.00015334,2]
[352931555,1739440254009,-1530.48,0.00015334,2]
[352931556,1739440254018,-628.37,0.00015334,2]
[352931557,1739440254027,-594.88,0.00015334,2]
[352931558,1739440254036,-589.79,0.00015334,2]
[352931559,1739440254045,-884.46,0.00015334,2]
[352931560,1739440254054,-1877.59,0.00015334,2]
[352931561,1739440254063,-500.0,0.00015334,2]
[352931562,1739440254073,-914.27,0.00015334,2]
[352931563,1739440254082,-1046.26,0.00015334,2]
[352931564,1739440254091,-2220.35,0.00015334,2]
[352931565,1739440254101,-545.51,0.00015334,2]
[352931566,1739440254110,-1810.79,0.00015334,2]
[352931567,1739440254119,-2777.59,0.00015334,2]
[352931568,1739440254128,-500.0,0.00015334,2]
[352931569,1739440254138,-1515.17,0.00015334,2]
[352931570,1739440254147,-1099.59,0.00015334,2]
[352931571,1739440254156,-794.69,0.00015334,2]
[352931572,1739440254165,-500.0,0.00015334,2]
[352931573,1739440254175,-2127.86,0.00015334,2]
[352931574,1739440254184,-3205.65,0.00015334,2]
[352931575,1739440254193,-4399.19,0.00015334,2]
[352931576,1739440254202,-500.0,0.00015334,2]
[352931577,1739440254211,-1268.38,0.00015334,2]
[352931578,1739440254220,-500.0,0.00015334,2]
[352931579,1739440254230,-1936.16,0.00015334,2]
[352931580,1739440254240,-508.4356099,0.00015334,2]
[352931581,1739440254249,-2550.2,0.00015334,2]
[352931582,1739440254258,-644.46,0.00015334,2]
[352931583,1739440254267,-1662.05,0.00015334,2]
[352931584,1739440254276,-860.4,0.00015334,2]
[352931585,1739440254285,-5958.12,0.00015334,2]
[352931586,1739440254294,-759.68,0.00015334,2]
[352931587,1739440254303,-500.0,0.00015334,2]
[352931588,1739440254312,-5966.96,0.00015334,2]
[352931589,1739440254322,-3463.49,0.00015334,2]
[352931590,1739440254331,-500.0,0.00015334,2]
[352931591,1739440254340,-837.54,0.00015334,2]
[352931592,1739440254350,-500.0,0.00015334,2]
[352931593,1739440254359,-4168.57,0.00015334,2]
[352931594,1739440254369,-1477.41,0.00015334,2]
[352931595,1739440254378,-500.0,0.00015334,2]
[352931596,1739440254387,-2802.86,0.00015334,2]